bitfinex-derivatives/quotes_SOLF0:USTF0_20260220
["timestamp","ask_amount","ask_price","bid_price","bid_amount"]
[1771597872801,10.9004,82.591,82.532,5.42991292]
[1771597873902,6.02458766,82.6,82.534,5.4363125]
[1771597874401,10.8995,82.597,82.534,16.3441125]
[1771597874599,169.441,82.65,82.51,6.02458766]
[1771597874600,169.3899,82.675,82.535,5.4363125]
[1771597874801,6.02458766,82.63,82.551,5.4363125]
[1771597875303,10.8986,82.604,82.551,5.4363125]
[1771597876004,10.8972,82.615,82.553,10.9053]
[1771597876202,6.02458766,82.63,82.554,5.45826507]
[1771597876502,6.02458766,82.63,82.556,5.45826507]
[1771597876903,10.896,82.624,82.558,5.45797978]
[1771597877404,6.02458766,82.63,82.558,5.45797978]
[1771597877405,10.8973,82.614,82.558,5.45797978]
[1771597878098,21.7805,82.668,82.55,6.02458766]
[1771597878099,6.02458766,82.64,82.561,5.47485941]
[1771597878606,10.8969,82.617,82.562,10.904]
[1771597879404,10.8954,82.628,82.57,10.903]
[1771597879598,6.02458766,82.66,82.571,5.4745929]
[1771597880005,10.8923,82.652,82.571,5.4745929]
[1771597880203,6.02458766,82.66,82.571,5.4745929]
[1771597880511,6.02458766,82.7,82.617,5.46690943]
[1771597880704,169.2348,82.751,82.576,21.8044]
[1771597880705,6.02458766,82.72,82.631,5.46664287]
[1771597880902,6.02458766,82.74,82.631,5.46664287]
[1771597881099,6.02458766,82.74,82.652,5.46664287]
[1771597881705,6.02458766,82.74,82.662,5.46664287]
[1771597881906,6.02458766,82.76,82.662,5.46664287]
[1771597882102,10.8786,82.756,82.685,10.8878]
[1771597882508,6.02458766,82.76,82.685,10.8878]
[1771597882712,10.8798,82.747,82.685,10.8878]
[1771597883008,6.02458766,82.76,82.671,10.8897]
[1771597883202,6.02458766,82.74,82.671,10.8897]
[1771597883607,10.8811,82.737,82.671,10.8897]
[1771597883807,6.02458766,82.76,82.672,5.47966163]
[1771597885505,461.00457525,82.761,82.672,5.47966163]
[1771597885506,10.8816,82.734,82.672,5.47966163]
[1771597885911,10.8816,82.734,82.673,10.8894]
[1771597886102,6.02458766,82.76,82.674,5.47253492]
[1771597886306,461.00457525,82.761,82.691,5.47253492]
[1771597886509,6.02458766,82.8,82.719,5.47253492]
[1771597886715,6.02458766,82.8,82.69,6.02458766]
[1771597886716,6.02458766,82.86,82.731,5.47229059]
[1771597887010,2.10253482,82.835,82.751,5.47229059]
[1771597887203,6.02458766,82.84,82.751,5.47229059]
[1771597887404,6.02458766,82.86,82.761,5.47229059]
[1771597887605,2.10147466,82.865,82.801,5.47229059]
[1771597887912,261.23531123,82.875,82.801,5.47229059]
[1771597888108,5.99635709,82.86,82.778,5.48612448]
[1771597888312,5.99635709,82.84,82.759,5.48612448]
[1771597888706,5.99635709,82.84,82.691,169.3545]
[1771597888707,5.99635709,82.86,82.731,5.48612448]
[1771597888904,5.99635709,82.85,82.751,5.48589491]
[1771597889314,5.99635709,82.86,82.754,5.48589491]
[1771597889811,5.99635709,82.86,82.771,5.48589491]
[1771597890313,5.99635709,82.82,82.752,5.47986856]
[1771597891110,10.8685,82.833,82.755,5.47963899]
[1771597891309,5.99635709,82.84,82.755,5.47963899]
[1771597891809,5.99635709,82.84,82.759,5.43186898]
[1771597892215,10.8677,82.839,82.759,5.43186898]
[1771597892715,5.99635709,82.82,82.74,5.43161816]
[1771597892915,5.99635709,82.83,82.74,5.43161816]
[1771597893316,5.99635709,82.83,82.741,5.43161816]
[1771597893512,5.99635709,82.86,82.771,5.43161816]
[1771597894016,261.23531123,82.875,82.791,5.55421202]
[1771597894315,5.99635709,82.92,82.758,169.2181]
[1771597894316,5.99635709,82.9,82.812,5.55421202]
[1771597894714,5.99635709,82.88,82.812,5.55421202]
[1771597894914,2.1004219,82.905,82.812,5.55421202]
[1771597894915,10.8598,82.899,82.812,5.55421202]
[1771597895518,10.8632,82.873,82.812,5.55421202]
[1771597895719,5.99635709,82.88,82.791,5.55403998]
[1771597895915,5.99635709,82.88,82.795,5.54998823]
[1771597896513,5.99635709,82.86,82.795,5.54998823]
[1771597897119,5.99635709,82.86,82.771,5.54981816]
[1771597897517,10.8652,82.859,82.773,5.54981816]
[1771597898022,5.99635709,82.88,82.773,5.54981816]
[1771597898320,5.99635709,82.88,82.791,5.58036073]
[1771597899216,5.99635709,82.88,82.793,5.58021516]
[1771597899515,5.99635709,82.86,82.793,5.58021516]
[1771597899914,10.8652,82.858,82.793,5.58021516]
[1771597900422,5.99635709,82.86,82.771,5.58724399]
[1771597900620,5.99635709,82.84,82.771,5.58724399]
[1771597901022,10.8698,82.823,82.771,5.58724399]
[1771597902316,5.99635709,82.83,82.771,5.58724399]
[1771597902521,5.99635709,82.86,82.771,5.58724399]
[1771597902720,10.8667,82.847,82.785,10.8747]
[1771597903018,5.99635709,82.86,82.771,5.58724399]
[1771597903421,5.99635709,82.86,82.775,5.58280201]
[1771597904220,5.99635709,82.88,82.783,5.58671197]
[1771597904423,5.99635709,82.9,82.801,5.58671197]
[1771597904824,10.8614,82.887,82.827,5.58658047]
[1771597905019,21.7075,82.946,82.827,5.58658047]
[1771597905226,5.99635709,82.92,82.827,5.58658047]
[1771597905420,5.99635709,82.92,82.828,5.58658047]
[1771597905621,5.99635709,82.9,82.828,5.58658047]
[1771597906025,21.7075,82.946,82.828,5.58658047]
[1771597906026,5.99635709,82.92,82.828,5.58658047]
[1771597906227,10.8585,82.909,82.84,5.58192804]
[1771597906625,5.99635709,82.92,82.84,5.58192804]
[1771597906822,5.99635709,82.92,82.842,5.58179844]
[1771597907027,21.7008,82.972,82.842,5.58179844]
[1771597907233,5.99635709,82.96,82.861,5.58179844]
[1771597907531,168.6777,83.024,82.86,5.99635709]
[1771597907532,5.99635709,82.98,82.887,5.58179844]
[1771597907825,5.99635709,82.98,82.86,5.99635709]
[1771597907826,5.99635709,82.98,82.901,5.58179844]
[1771597908126,5.99635709,83.0,82.911,5.58506372]
[1771597908536,5.99635709,83.0,82.912,5.58506372]
[1771597908730,5.99635709,82.98,82.881,5.58506372]
[1771597908931,5.99635709,82.98,82.885,5.58493944]
[1771597909133,10.854,82.944,82.885,5.58493944]
[1771597909725,5.99635709,82.98,82.908,5.58493944]
[1771597910623,16.84565709,82.98,82.908,16.44343944]
[1771597910830,16.84565709,82.98,82.909,5.43522259]
[1771597911027,5.99635709,82.98,82.909,5.43522259]
[1771597911227,5.99635709,82.96,82.89,5.43522259]
[1771597911624,5.99635709,82.94,82.87,5.43522259]
[1771597912332,16.85085709,82.94,82.87,5.43522259]
[1771597912527,5.99635709,82.94,82.87,5.43522259]
[1771597912927,10.856,82.928,82.87,5.43522259]
[1771597913134,5.99635709,82.94,82.87,5.43522259]
[1771597913536,10.8561,82.928,82.851,5.42715735]
[1771597913731,5.99635709,82.96,82.861,5.42715735]
[1771597913932,5.99635709,82.92,82.861,5.42715735]
[1771597914134,5.99635709,82.98,82.861,5.42715735]
[1771597914333,5.99635709,82.94,82.861,5.42715735]
[1771597914531,5.99635709,82.92,82.861,5.42715735]
[1771597914735,10.8573,82.919,82.861,5.42715735]
[1771597914926,10.8573,82.919,82.842,10.8672]
[1771597915131,5.99635709,82.92,82.842,5.43557941]
[1771597915432,10.8572,82.919,82.851,10.866]
[1771597915631,10.8572,82.919,82.842,5.43557941]
[1771597915836,5.99635709,82.92,82.842,5.43557941]
[1771597916538,10.8585,82.91,82.843,10.8671]
[1771597916739,5.99635709,82.92,82.844,5.44644911]
[1771597917638,10.8559,82.929,82.863,10.8644]
[1771597917837,10.8559,82.929,82.864,5.45108541]
[1771597918237,5.99635709,82.94,82.864,5.45108541]
[1771597918238,10.8571,82.92,82.864,5.45108541]
[1771597918538,10.8571,82.92,82.841,5.45108541]
[1771597918740,10.8584,82.91,82.844,10.867]
[1771597919039,5.99635709,82.94,82.845,5.45091907]
[1771597919237,10.8571,82.92,82.857,5.45091907]
[1771597919644,5.99635709,82.94,82.857,5.45091907]
[1771597919843,10.8584,82.91,82.857,5.45091907]
[1771597920046,5.99635709,82.92,82.836,10.868]
[1771597920243,5.99635709,82.92,82.837,5.45636749]
[1771597920440,10.8559,82.929,82.859,5.45636749]
[1771597920846,10.8542,82.942,82.878,5.45620736]
[1771597921051,21.6937,82.999,82.878,5.45620736]
[1771597921252,5.99635709,82.98,82.881,5.45620736]
[1771597921452,10.8488,82.983,82.92,10.857]
[1771597921647,168.5777,83.073,82.921,5.45620736]
[1771597921851,5.99635709,83.02,82.921,5.45620736]
[1771597922249,5.99635709,83.02,82.939,5.46656539]
[1771597922448,5.99635709,83.0,82.917,5.46656539]
[1771597922648,5.99635709,83.0,82.9,5.99635709]
[1771597922852,5.99635709,82.98,82.901,5.46641399]
[1771597923951,10.8517,82.961,82.905,10.859]
[1771597924154,5.99635709,82.98,82.859,36.27]
[1771597924155,5.99635709,82.98,82.906,5.42257862]
[1771597924354,5.99635709,83.0,82.906,5.42257862]
[1771597924848,5.99635709,82.98,82.906,5.42257862]
[1771597925447,21.6919,83.005,82.906,5.42257862]
[1771597925756,10.8492,82.98,82.928,5.43188434]
[1771597926150,5.99635709,83.02,82.928,5.43188434]
[1771597926449,10.8493,82.979,82.93,5.43188434]
[1771597926652,5.99635709,83.02,82.93,5.43188434]
[1771597926953,2.09763654,83.025,82.941,4.10250739]
[1771597927348,4.92307497,83.035,82.929,16.09]
[1771597927349,4.92307497,83.035,82.961,4.13159662]
[1771597927553,5.99635709,83.05,82.929,16.09]
[1771597927554,5.0953689,83.104,83.001,4.13159662]
[1771597927857,5.0953689,83.104,83.021,4.11840971]
[1771597928153,5.0953689,83.104,83.0,5.99635709]
[1771597928353,5.0953689,83.072,82.991,4.13523127]
[1771597928547,5.0953689,83.096,83.011,4.13523127]
[1771597928744,5.0953689,83.116,83.035,4.13386855]
[1771597928948,5.0953689,83.116,83.021,4.13386855]
[1771597929444,5.0953689,83.116,83.041,4.1504938]
[1771597929645,5.0953689,83.116,83.02,5.99635709]
[1771597929858,5.99635709,83.08,82.991,3.16892508]
[1771597930057,5.0953689,83.079,82.991,3.16892508]
[1771597930257,5.0953689,83.069,82.991,3.16892508]
[1771597930453,5.0953689,83.049,82.95,5.99635709]
[1771597930650,5.0953689,83.049,82.951,3.18531069]
[1771597930850,5.99635709,83.03,82.951,3.18531069]
[1771597931050,5.0953689,83.029,82.951,3.18531069]
[1771597931655,5.99635709,83.04,82.966,3.19874953]
[1771597931854,5.0953689,83.051,82.966,3.19874953]
[1771597932255,5.0953689,83.051,82.967,10.8508]
[1771597932656,5.0953689,83.051,82.99,10.8478]
[1771597932851,5.0953689,83.051,82.971,3.30366628]
[1771597933255,5.0953689,83.047,82.971,3.30366628]
[1771597933456,5.0953689,83.047,82.951,3.30853315]
[1771597933855,10.8415,83.039,82.976,10.8496]
[1771597934359,5.0953689,83.035,82.951,3.30853315]
[1771597935759,5.0953689,83.035,82.972,3.65589253]
[1771597936155,5.0953689,83.035,82.941,3.65589253]
[1771597936351,5.0953689,83.019,82.919,3.66318189]
[1771597936752,5.0953689,82.97,82.876,3.66220215]
[1771597936958,5.0953689,82.97,82.881,3.66220215]
[1771597937554,5.0953689,82.956,82.841,3.66946957]
[1771597938156,5.0953689,82.948,82.849,3.73879294]
[1771597938361,5.0953689,82.948,82.861,3.73879294]
[1771597940158,5.0953689,82.948,82.886,10.8614]
[1771597940465,5.0953689,82.948,82.861,3.73879294]
[1771597940765,5.0953689,82.948,82.887,14.36]
[1771597941564,5.0953689,82.945,82.887,14.36]
[1771597941964,10.8555,82.932,82.887,14.36]
[1771597942164,5.0953689,82.931,82.887,14.36]
[1771597943160,5.0953689,82.953,82.887,14.36]
[1771597943557,5.0953689,82.953,82.898,10.8598]
[1771597944661,5.0953689,82.953,82.888,10.8612]
[1771597944865,5.0953689,82.951,82.887,14.36]
[1771597946163,5.0953689,82.95,82.887,14.36]
[1771597946371,5.0953689,82.979,82.888,4.13535313]
[1771597947358,5.0953689,82.979,82.906,10.8588]
[1771597948163,5.0953689,82.979,82.888,4.13535313]
[1771597948368,5.0953689,82.965,82.894,10.8604]
[1771597948760,5.0953689,82.965,82.887,14.36]
[1771597948967,5.0953689,82.937,82.887,14.36]
[1771597950775,15.9502689,82.937,82.887,14.36]
[1771597951872,5.0953689,82.937,82.887,25.2213]
[1771597952068,10.8536,82.947,82.887,29.56262168]
[1771597952374,5.0953689,82.957,82.887,18.70132168]
[1771597952573,10.8536,82.947,82.887,18.70132168]
[1771597952765,5.0953689,82.957,82.888,4.34698461]
[1771597952962,10.851,82.966,82.916,10.8575]
[1771597953370,10.851,82.966,82.888,4.34698461]
[1771597953570,10.851,82.966,82.912,10.858]
[1771597954165,10.8521,82.958,82.904,4.33923224]
[1771597954662,5.0953689,82.977,82.907,4.33875081]
[1771597954969,5.0953689,82.977,82.888,4.33875081]
[1771597955861,5.0953689,83.009,82.921,4.40025406]
[1771597956061,10.8472,82.995,82.943,10.854]
[1771597956569,5.0953689,83.031,82.957,4.40611404]
[1771597956772,5.0953689,83.031,82.961,4.40611404]
[1771597957374,4.93348536,83.029,82.942,4.42102668]
[1771597957569,4.93348536,83.029,82.961,4.42102668]
[1771597958274,5.97766764,83.05,82.961,4.42102668]
[1771597958473,4.93348536,83.052,82.981,4.43184276]
[1771597959270,4.93348536,83.033,82.961,4.4370077]
[1771597959875,5.97766764,83.05,82.984,10.8486]
[1771597960175,4.93348536,83.049,82.984,10.8486]
[1771597960372,10.8425,83.032,82.965,10.8511]
[1771597960572,4.93348536,83.031,82.961,4.4370077]
[1771597961876,10.8427,83.03,82.961,4.4370077]
[1771597962372,4.93348536,83.049,82.961,4.4370077]
[1771597962768,4.93348536,83.049,82.981,4.49444251]
[1771597963677,4.93348536,83.07,82.993,4.499309]
[1771597964074,4.93348536,83.07,82.96,21.7036]
[1771597964075,4.93348536,83.07,83.001,4.51040978]
[1771597964675,4.93348536,83.07,83.013,10.8448]
[1771597964875,4.93348536,83.07,83.001,4.51040978]
[1771597965077,4.93348536,83.069,82.981,4.51004614]
[1771597965274,4.93348536,83.062,83.003,10.8461]
[1771597965474,4.93348536,83.062,82.981,4.51004614]
[1771597966274,4.93348536,83.062,83.008,10.8455]
[1771597966480,4.93348536,83.062,82.981,4.51004614]
[1771597967476,4.93348536,83.062,83.005,10.8459]
[1771597967780,4.93348536,83.059,82.981,4.51004614]
[1771597967978,4.93348536,83.033,82.96,5.97766764]
[1771597968176,4.93348536,83.033,82.958,4.54194365]
[1771597968377,4.93348536,83.019,82.94,5.97766764]
[1771597968580,10.8475,82.994,82.942,10.854]
[1771597968787,4.93348536,83.019,82.939,4.54701205]
[1771597969370,4.93348536,83.014,82.939,4.54701205]
[1771597969778,10.8469,82.998,82.94,10.8543]
[1771597969972,10.8469,82.998,82.92,5.97766764]
[1771597969973,4.93348536,83.014,82.92,5.97766764]
[1771597970274,4.93348536,83.014,82.922,4.55361164]
[1771597970471,4.93348536,83.014,82.941,4.55361164]
[1771597971175,4.93348536,83.014,82.953,10.8526]
[1771597971578,4.93348536,83.014,82.941,4.55361164]
[1771597971781,10.8453,83.01,82.954,10.8526]
[1771597971974,10.8453,83.01,82.941,4.55361164]
[1771597972179,4.93348536,83.039,82.961,4.52874522]
[1771597972584,10.8418,83.037,82.977,10.8495]
[1771597972780,4.93348536,83.059,82.961,4.52874522]
[1771597972980,4.93348536,83.059,82.981,4.52840799]
[1771597974275,4.93348536,83.059,83.003,10.8461]
[1771597974882,4.93348536,83.059,82.981,4.52840799]
[1771597975381,10.8415,83.039,82.99,10.8478]
[1771597975585,4.93348536,83.059,82.981,4.52840799]
[1771597976383,10.8405,83.047,82.981,4.52840799]
[1771597976585,4.93348536,83.059,82.981,4.52840799]
[1771597976777,10.8423,83.033,82.981,4.52840799]
[1771597977580,15.77578536,83.033,82.975,10.8498]
[1771597977885,4.93348536,83.033,82.975,10.8498]
[1771597978080,5.97766764,83.05,82.979,10.8493]
[1771597978275,4.93348536,83.052,82.979,4.44252814]
[1771597978679,4.93348536,83.047,82.96,5.97766764]
[1771597978877,4.93348536,83.047,82.961,4.44216608]
[1771597979279,4.93348536,83.03,82.961,4.44216608]
[1771597980086,15.77628536,83.029,82.961,4.44216608]
[1771597980286,4.93348536,83.029,82.961,4.44216608]
[1771597980679,4.93348536,83.052,82.961,4.44216608]
[1771597980979,4.93348536,83.052,82.981,4.46366833]
[1771597981977,4.93348536,83.034,82.961,4.39131974]
[1771597982486,4.93348536,83.032,82.961,4.39131974]
[1771597984195,4.93348536,83.032,82.993,10.8474]
[1771597984885,4.93348536,83.031,82.984,10.8486]
[1771597985786,5.03056829,83.026,82.966,10.8509]
[1771597985990,5.03056829,83.026,82.96,5.97766764]
[1771597986988,5.03056829,83.026,82.987,10.8482]
[1771597987184,5.97766764,83.05,82.961,4.32605575]
[1771597987185,4.99638151,83.045,82.961,4.32605575]
[1771597987581,10.841,83.044,82.963,4.32605575]
[1771597987890,4.99638151,83.069,82.981,4.32605575]
[1771597988096,4.99638151,83.088,83.021,4.31803263]
[1771597988289,4.99638151,83.107,83.021,4.31803263]
[1771597988592,10.8344,83.094,83.047,10.8404]
[1771597988791,4.99638151,83.107,83.047,10.8404]
[1771597989289,10.8354,83.086,83.038,10.8416]
[1771597989493,10.8354,83.086,83.021,4.31803263]
[1771597989494,4.99638151,83.085,83.001,4.32140254]
[1771597989984,4.99638151,83.072,83.02,10.8439]
[1771597990188,4.99638151,83.072,83.001,4.32140254]
[1771597990489,4.99638151,83.069,82.981,4.20956792]
[1771597991090,10.8384,83.063,82.981,4.20956792]
[1771597991291,4.99638151,83.09,83.001,4.21278888]
[1771597991797,4.99638151,83.09,83.021,4.21278888]
[1771597991987,264.55431663,83.087,83.021,4.21278888]
[1771597992193,4.99638151,83.085,83.04,10.8412]
[1771597992389,4.99638151,83.085,83.021,4.21278888]
[1771597992687,4.99638151,83.085,83.004,4.22575514]
[1771597993092,4.99638151,83.085,83.021,4.21525363]
[1771597993295,259.55793512,83.087,83.021,4.21525363]
[1771597993484,221.86093512,83.087,83.041,4.21525363]
[1771597993685,143.92463512,83.087,83.068,10.8376]
[1771597993893,3.532e-05,83.087,83.041,4.21525363]
[1771597994091,43.70809858,83.169,83.08,5.97766764]
[1771597994392,43.70809858,83.149,83.028,323.68476204]
[1771597994594,43.70809858,83.129,83.05,5.97766764]
[1771597994892,10.8317,83.115,83.05,5.97766764]
[1771597995082,43.71084937,83.115,83.05,5.97766764]
[1771597995286,43.71084937,83.135,83.05,5.97766764]
[1771597995694,43.71084937,83.135,83.03,5.97766764]
[1771597995993,43.78019619,83.119,83.03,5.97766764]
[1771597996192,43.78019619,83.114,83.06,10.8387]
[1771597996383,43.78019619,83.099,82.973,168.7787]
[1771597996582,5.97766764,83.08,83.0,5.97766764]
[1771597996893,43.78319808,83.079,83.014,10.8447]
[1771597997092,43.78319808,83.079,83.0,5.97766764]
[1771597997689,43.78319808,83.066,83.0,10.8465]
[1771597998097,43.78319808,83.066,82.97,5.97766764]
[1771597998396,5.97766764,83.07,82.97,5.97766764]
[1771597998397,43.82144233,83.051,82.989,10.848]
[1771597998602,43.82144233,83.051,82.97,5.97766764]
[1771597998985,43.82144233,83.051,83.0,10.8465]
[1771597999392,43.82144233,83.051,82.97,67.97766764]
[1771597999592,43.82454667,83.048,82.986,10.8484]
[1771598000194,43.82454667,83.048,82.997,10.8469]
[1771598000502,43.82454667,83.048,82.97,67.97766764]
[1771598001694,43.82454667,83.048,83.002,10.8463]
[1771598002295,43.6355506,83.069,83.012,10.8449]
[1771598003094,43.6355506,83.064,83.001,10.8464]
[1771598003400,43.6355506,83.059,82.97,67.97766764]
[1771598003704,10.8407,83.046,82.991,10.8477]
[1771598004098,43.63591347,83.045,82.97,5.97766764]
[1771598004501,43.63591347,83.043,82.95,5.97766764]
[1771598004702,43.63591347,83.039,82.95,5.97766764]
[1771598004899,43.63591347,83.019,82.93,5.97766764]
[1771598005203,43.63591347,83.002,82.948,10.8533]
[1771598006703,10.8465,83.001,82.948,10.8533]
[1771598007301,10.8476,82.993,82.937,10.8547]
[1771598007497,43.61884051,83.001,82.93,67.97766764]
[1771598007692,43.61884051,83.001,82.93,5.97766764]
[1771598008498,43.60777005,82.999,82.938,10.8546]
[1771598008798,43.60777005,82.999,82.92,5.97766764]
[1771598008993,54.45777005,82.974,82.91,5.97766764]
[1771598009196,43.60777005,82.974,82.91,5.97766764]
[1771598009501,43.60777005,82.994,82.947,10.8535]
[1771598009701,5.97766764,83.02,82.93,5.97766764]
[1771598009702,43.60777005,83.019,82.93,5.97766764]
[1771598009890,43.60777005,83.019,82.93,5.97565864]
[1771598010293,43.63382108,82.998,82.939,10.8545]
[1771598010497,43.63382108,82.998,82.93,5.97565864]
[1771598011004,43.63382108,83.039,82.95,5.97565864]
[1771598011200,43.63382108,83.039,82.97,5.97565864]
[1771598011405,43.63382108,83.028,82.96,5.97565864]
[1771598012107,43.63663186,83.024,82.96,5.97565864]
[1771598012309,43.63663186,83.059,82.96,5.97565864]
[1771598012809,43.63663186,83.041,82.98,5.97565864]
[1771598013507,10.8425,83.032,82.96,5.97565864]
[1771598013807,54.47913186,83.032,82.96,5.97565864]
[1771598014209,168.553,83.085,82.96,5.97565864]
[1771598014210,54.48305915,83.019,82.965,10.8511]
[1771598014908,54.48425915,83.01,82.955,10.8524]
[1771598015502,43.63885915,83.03,82.93,5.97565864]
[1771598015697,43.63885915,83.059,82.96,5.97565864]
[1771598016104,43.63885915,83.059,82.98,5.97565864]
[1771598016604,43.63856423,83.051,82.951,21.7059]
[1771598016805,43.63856423,83.051,82.96,5.97565864]
[1771598017410,43.63856423,83.051,82.96,67.97565864]
[1771598017810,54.49407315,83.035,82.984,10.8486]
[1771598019211,43.65207315,83.035,82.991,10.8476]
[1771598019599,43.65207315,83.035,82.96,67.97565864]
[1771598019800,43.65207315,83.035,82.98,5.97565864]
[1771598020005,10.8398,83.053,82.98,5.97565864]
[1771598020610,54.48305771,83.053,82.98,5.97565864]
[1771598020810,54.48305771,83.053,83.004,10.846]
[1771598022817,43.64618247,83.046,82.96,67.97565864]
[1771598023307,43.64618247,83.046,83.006,10.8457]
[1771598023815,43.64618247,83.046,82.98,5.97565864]
[1771598024319,43.64618247,83.046,83.012,10.8449]
[1771598024903,10.8377,83.069,82.98,5.97565864]
[1771598025111,43.65126948,83.069,83.0,5.97565864]
[1771598025316,43.65126948,83.069,82.985,21.697]
[1771598025317,43.65126948,83.088,83.02,5.97565864]
[1771598025812,43.65126948,83.088,83.056,10.8392]
[1771598026014,43.63896778,83.104,83.04,5.97565864]
[1771598026214,43.63896778,83.124,83.06,5.97565864]
[1771598026808,168.2985,83.211,83.026,36.17]
[1771598026809,43.63896778,83.145,83.037,168.6498]
[1771598027007,43.63896778,83.145,83.07,5.97565864]
[1771598027415,43.63896778,83.145,83.06,5.97565864]
[1771598027912,43.63358251,83.133,83.06,5.97565864]
[1771598028218,43.63358251,83.133,83.04,5.97565864]
[1771598028426,43.63358251,83.114,83.04,5.97565864]
[1771598028915,43.63358251,83.133,83.04,5.97565864]
[1771598029118,43.63358251,83.133,83.06,5.97565864]
[1771598029316,43.63358251,83.151,83.08,5.97565864]
[1771598029517,43.63358251,83.17,83.08,5.97565864]
[1771598029817,43.63358251,83.17,83.1,5.97565864]
[1771598030114,43.63358251,83.17,83.1,24.12501511]
[1771598030317,43.57608308,83.191,83.1,24.12501511]
[1771598031117,43.57608308,83.211,83.1,18.14935647]
[1771598031322,43.57608308,83.211,83.12,5.97565864]
[1771598031520,5.97565864,83.21,83.12,24.00969183]
[1771598031717,43.57608308,83.188,83.12,18.03403319]
[1771598032317,43.53018847,83.173,83.12,18.03403319]
[1771598033425,43.53018847,83.173,83.122,10.8306]
[1771598033623,43.53018847,83.198,83.12,24.00969183]
[1771598033919,43.63176105,83.192,83.12,24.00969183]
[1771598034118,43.63176105,83.192,83.12,18.03403319]
[1771598034619,5.97565864,83.21,83.13,5.97565864]
[1771598034922,43.63176105,83.198,83.12,18.03403319]
[1771598035122,43.63176105,83.192,83.12,18.03403319]
[1771598035618,43.63176105,83.192,83.138,10.8285]
[1771598035820,43.63176105,83.192,83.138,17.8588126]
[1771598036813,43.63176105,83.192,83.12,18.03403319]
[1771598037010,34.64615645,83.179,83.12,18.03403319]
[1771598037421,34.64615645,83.175,83.12,18.03403319]
[1771598038111,51.37057668,83.193,83.12,18.03403319]
[1771598038315,34.54558407,83.19,83.12,18.03403319]
[1771598038719,34.54558407,83.179,83.122,10.8306]
[1771598039018,34.54558407,83.179,83.12,18.03403319]
[1771598039514,34.54558407,83.179,83.13,10.8295]
[1771598039717,34.54558407,83.179,83.12,18.03403319]
[1771598040112,16.82499261,83.193,83.12,18.03403319]
[1771598040113,34.52354964,83.178,83.12,18.03403319]
[1771598040321,34.52354964,83.178,83.1,18.14935647]
[1771598040522,25.50653305,83.175,83.112,10.832]
[1771598040722,16.82499261,83.193,83.12,5.97565864]
[1771598040924,42.33152566,83.193,83.12,23.94130387]
[1771598041224,16.82499261,83.193,83.12,23.94130387]
[1771598041621,25.50653305,83.192,83.138,10.8286]
[1771598041821,25.50653305,83.192,83.138,28.8677118]
[1771598042326,25.5051862,83.19,83.138,18.0391118]
[1771598043629,25.5051862,83.185,83.138,18.0391118]
[1771598043830,25.5051862,83.185,83.12,17.96564523]
[1771598044027,25.5051862,83.185,83.1,24.12501511]
[1771598044028,16.5166521,83.155,83.102,10.8332]
[1771598044230,16.5166521,83.155,83.1,18.14935647]
[1771598044526,7.53382948,83.189,83.1,18.14935647]
[1771598044729,7.53382948,83.173,83.11,10.8322]
[1771598045128,7.53382948,83.173,83.119,10.831]
[1771598045329,7.53382948,83.173,83.119,28.59652601]
[1771598046327,16.82499261,83.193,83.119,28.59652601]
[1771598046328,7.52682644,83.171,83.119,17.76552601]
[1771598047734,7.52682644,83.171,83.129,10.8296]
[1771598047928,7.52682644,83.171,83.119,17.76552601]
[1771598048231,7.51951853,83.162,83.119,17.76552601]
[1771598048733,7.51951853,83.189,83.119,17.76552601]
[1771598049134,7.51951853,83.18,83.119,28.59642601]
[1771598049634,7.51951853,83.18,83.127,10.83]
[1771598050222,7.50870785,83.178,83.119,17.76552601]
[1771598051130,7.50870785,83.168,83.119,17.76552601]
[1771598051822,7.50770331,83.159,83.119,17.76552601]
[1771598052024,7.50770331,83.159,83.106,10.8327]
[1771598052025,7.50770331,83.159,83.1,22.08912118]
[1771598052226,7.50770331,83.159,83.101,3.93976471]
[1771598052423,3.94042994,83.157,83.1,18.14935647]
[1771598053034,3.94042994,83.135,83.1,18.14935647]
[1771598053729,14.77082994,83.125,83.072,10.8371]
[1771598054033,14.77082994,83.125,83.05,5.97565864]
[1771598054034,3.94042994,83.125,83.05,5.97565864]
[1771598054443,10.8331,83.104,83.05,5.97565864]
[1771598054640,3.94042994,83.103,83.041,3.93976471]
[1771598055432,3.94042994,83.124,83.041,3.93976471]
[1771598055934,10.8308,83.121,83.064,10.8381]
[1771598056126,3.94042994,83.124,83.059,3.93976471]
[1771598056329,10.8316,83.115,83.061,10.8385]
[1771598057532,3.94042994,83.159,83.071,3.93976471]
[1771598057737,3.94042994,83.139,83.051,3.93976471]
[1771598058038,14.77142994,83.12,83.061,10.8385]
[1771598058225,3.94042994,83.119,83.061,10.8385]
[1771598058631,3.94042994,83.119,83.068,10.8376]